{"text_format":"3","workbook":"xlsx","n_sheets":2,"sheets":["A MUNKAFÜZET HASZNÁLATA","OSZTÁLYNAPLÓ"],"not_rendered":{"defined_names":5},"read":"whole","date_system":"1900"}

{"sheet":"A MUNKAFÜZET HASZNÁLATA","index":0,"n_rows":10,"n_cols":2,"rows_kept":10}
[null,"ÚTMUTATÁS"]
[null,"Az OSZTÁLYNAPLÓ munkalapon kiszámíthatja az osztályzatokat, az egyes feladatokon elért pontszám alapján. "]
[null,"Útmutatás: Mindenképpen készítsen biztonsági másolatot az osztályzatokról."]
[null,"1. Adja meg az iskola neve, az osztály adatait, a diákok nevét és a diákok azonosítóját (nem kötelező).   "]
[null,"2. Végezze el az osztályzat és a tanulmányi átlag táblázatában az Ön által használt pontozórendszernek megfelelő módosításokat."]
[null,"3. A G7 cellával kezdődően adhatja meg a feladat vagy dolgozat nevét, valamint az értük járó pontszámot (például „Végső” és „50%”). "]
[null,"4. Adja meg az egyes tanulók által a feladatokkal vagy dolgozatokon elért pontszámot. A sablon automatikusan kiszámítja a „Pontszám”, az „Osztályzat” és a „Tanulmányi átlag” oszlop értékét, amelyet szükség esetén felülbírálhat. Az osztályzatok kiszámításakor az átlagos és a végső osztályzat mindaddig nem végleges, amíg nincs megadva az összes pontszám."]
[null,"A Lapelrendezés menü „Nyomtatási terület” parancsával megváltoztathatja a kinyomtatandó tartalmat."]
[null,"A pontszám, az osztályzat és a tanulmányi átlag mindaddig nem érvényes, amíg nincs befejezve a tesztek és feladatok 100%-a. "]
[null,"A G7–W8 cellákban adhatja meg az egyes feladatokat és dolgozatokat és azok teljes osztályzathoz viszonyított százalékát."]

{"sheet":"OSZTÁLYNAPLÓ","index":1,"n_rows":20,"n_cols":23,"rows_kept":20,"merged":[[5,1,5,5],[6,1,6,3],[6,4,6,5],[7,1,8,3],[7,4,7,5],[8,4,8,5],[15,1,15,5],[16,1,16,2],[17,1,17,2],[18,1,18,2],[19,1,19,2]]}
[null,"AZ ISKOLA NEVE"]
[]
[{"$nulls":6},"Pontszám",{"v":0,"d":"0%"},{"v":0.6,"d":"60%"},{"v":0.63,"d":"63%"},{"v":0.67,"d":"67%"},{"v":0.7,"d":"70%"},{"v":0.73,"d":"73%"},{"v":0.77,"d":"77%"},{"v":0.8,"d":"80%"},{"v":0.83,"d":"83%"},{"v":0.87,"d":"87%"},{"v":0.9,"d":"90%"},{"v":0.93,"d":"93%"},{"v":0.97,"d":"97%"}]
[{"$nulls":6},"Osztályzat","1","2-","2","2+","3-","3","3+","4-","4","4+","5-","5","5+"]
[{"$nulls":6},"Tanulmányi átlag",0,0.67,1,1.33,1.67,2,2.33,2.67,3,3.33,3.67,4,4]
[null,"Tanár neve"]
[null,"Osztály/projekt",null,null,"Feladat vagy dolgozat neve"]
[null,"Év/félév/negyedév",null,null,"Százalék (összesen 100%-nak kell lennie)"]
[{"$nulls":4},{"$f":"\"Százalék összesen: \"&SUM(G8:W8)*100&\"%\"","v":"Százalék összesen: 0%"}]
[null,"Diák neve","Tanuló azonosítója","Pontszám","Osztályzat","Tanulmányi átlag","Oszlop6","Oszlop7","Oszlop8","Oszlop9","Oszlop10","Oszlop11","Oszlop12","Oszlop13","Oszlop14","Oszlop15","Oszlop16","Oszlop17","Oszlop18","Oszlop19","Oszlop20","Oszlop21","Oszlop22"]
[{"$nulls":3},{"$f":"(IF(SUM(Osztályzatok[[#This Row],[Oszlop6]:[Oszlop22]]),ROUND(SUMPRODUCT($G$8:$W$8,Osztályzatok[[#This Row],[Oszlop6]:[Oszlop22]]),2),\"\"))","v":""},{"$f":"IF(Osztályzatok[[#This Row],[Pontszám]]<>\"\",HLOOKUP(Osztályzatok[[#This Row],[Pontszám]],OsztályzatTáblázat,2),\"\")","v":""},{"$f":"IF(Osztályzatok[[#This Row],[Pontszám]]<>\"\",HLOOKUP(Osztályzatok[[#This Row],[Pontszám]],OsztályzatTáblázat,3),\"\")","v":""}]
[{"$nulls":3},{"$f":"(IF(SUM(Osztályzatok[[#This Row],[Oszlop6]:[Oszlop22]]),ROUND(SUMPRODUCT($G$8:$W$8,Osztályzatok[[#This Row],[Oszlop6]:[Oszlop22]]),2),\"\"))","v":""},{"$f":"IF(Osztályzatok[[#This Row],[Pontszám]]<>\"\",HLOOKUP(Osztályzatok[[#This Row],[Pontszám]],OsztályzatTáblázat,2),\"\")","v":""},{"$f":"IF(Osztályzatok[[#This Row],[Pontszám]]<>\"\",HLOOKUP(Osztályzatok[[#This Row],[Pontszám]],OsztályzatTáblázat,3),\"\")","v":""}]
[{"$nulls":3},{"$f":"(IF(SUM(Osztályzatok[[#This Row],[Oszlop6]:[Oszlop22]]),ROUND(SUMPRODUCT($G$8:$W$8,Osztályzatok[[#This Row],[Oszlop6]:[Oszlop22]]),2),\"\"))","v":""},{"$f":"IF(Osztályzatok[[#This Row],[Pontszám]]<>\"\",HLOOKUP(Osztályzatok[[#This Row],[Pontszám]],OsztályzatTáblázat,2),\"\")","v":""},{"$f":"IF(Osztályzatok[[#This Row],[Pontszám]]<>\"\",HLOOKUP(Osztályzatok[[#This Row],[Pontszám]],OsztályzatTáblázat,3),\"\")","v":""}]
[{"$nulls":3},{"$f":"(IF(SUM(Osztályzatok[[#This Row],[Oszlop6]:[Oszlop22]]),ROUND(SUMPRODUCT($G$8:$W$8,Osztályzatok[[#This Row],[Oszlop6]:[Oszlop22]]),2),\"\"))","v":""},{"$f":"IF(Osztályzatok[[#This Row],[Pontszám]]<>\"\",HLOOKUP(Osztályzatok[[#This Row],[Pontszám]],OsztályzatTáblázat,2),\"\")","v":""},{"$f":"IF(Osztályzatok[[#This Row],[Pontszám]]<>\"\",HLOOKUP(Osztályzatok[[#This Row],[Pontszám]],OsztályzatTáblázat,3),\"\")","v":""}]
[{"$nulls":3},{"$f":"(IF(SUM(Osztályzatok[[#This Row],[Oszlop6]:[Oszlop22]]),ROUND(SUMPRODUCT($G$8:$W$8,Osztályzatok[[#This Row],[Oszlop6]:[Oszlop22]]),2),\"\"))","v":""},{"$f":"IF(Osztályzatok[[#This Row],[Pontszám]]<>\"\",HLOOKUP(Osztályzatok[[#This Row],[Pontszám]],OsztályzatTáblázat,2),\"\")","v":""},{"$f":"IF(Osztályzatok[[#This Row],[Pontszám]]<>\"\",HLOOKUP(Osztályzatok[[#This Row],[Pontszám]],OsztályzatTáblázat,3),\"\")","v":""}]
[]
[null,"Osztály összesítése",null,"Pontszám","Osztályzat","Tanulmányi átlag","","","","","","","","","","",""]
[null," Átlag",null,{"$f":"IFERROR(AVERAGE(Osztályzatok[[#All],[Pontszám]]),0)","v":{"v":0,"d":"0.0%"}},{"$f":"IFERROR(HLOOKUP(D18,OsztályzatTáblázat,2),\"\")","v":"1"},{"$f":"IFERROR(AVERAGE(Osztályzatok[[#All],[Tanulmányi átlag]]),0)","v":0},"","","","","","","","","","","","","","","","",""]
[null," Legmagasabb pontszám",null,{"$f":"IFERROR(MAX(Osztályzatok[[#All],[Pontszám]]),0)","v":{"v":0,"d":"0.0%"}},{"$f":"IFERROR(HLOOKUP(D19,OsztályzatTáblázat,2),\"\")","v":"1"},{"$f":"IFERROR(MAX(Osztályzatok[[#All],[Tanulmányi átlag]]),0)","v":0},"","","","","","","","","","","","","","","","",""]
[null," Legalacsonyabb pontszám",null,{"$f":"IFERROR(MIN(Osztályzatok[[#All],[Pontszám]]),0)","v":{"v":0,"d":"0.0%"}},{"$f":"IFERROR(HLOOKUP(D20,OsztályzatTáblázat,2),\"\")","v":"1"},{"$f":"IFERROR(MIN(Osztályzatok[[#All],[Tanulmányi átlag]]),0)","v":0},"","","","","","","","","","","","","","","","",""]